{"text_format":"1","workbook":"xlsx","n_sheets":5,"sheets":["c","i","States","Instructions_Rem","Data"],"not_rendered":{"charts":0,"images":4,"macros":1,"external_links":0,"defined_names":197,"comments":0,"pivot_tables":0},"unopened":[],"bounds":{"document_bytes":16777216,"sheet_cells":100000,"rows_first":2000,"rows_last":500,"rows_between":2000,"halvings":0,"cell_chars":16384,"cell_head_chars":4096},"cells_cut":0,"cells_raw":0,"read":"whole","date_system":"1900"}

{"sheet":"c","index":0,"n_rows":27,"n_cols":5,"rows_kept":27,"cut":false,"hidden":false,"merged":[[3,3,3,4],[20,1,23,6],[24,1,24,6],[14,4,15,8],[26,1,27,6]]}
[null,"High Earners Report SUP 16 Annex 34AR"]
[null,"Information on the remuneration of high earners"]
[null,"Failure to complete this cover sheet may lead to rejection of the submission"]
[null,"1.a","Name of institution/group:"]
[]
[null,"1.b","Reference number of institution/group:"]
[]
[null,"1.d","Financial year for which remuneration is awarded (Year N)"]
[]
[null,"1.e","Is this report on behalf of a group?",null,"Y"]
[]
[null,"1.f","If yes, please list the firm reference numbers of the other firms in the consolidation group."]
[]
[null,null,"Firm Name","FRN"]
[null,null,null,null,"This table adds a new row when you enter a firm name.  Please do not add rows manually to this table."]
[]
[null,null,"Navigation:","High Earners Report"]
[]
[null,null,null,"Guidance Notes for High Earners Report"]
[]
[null,"High Earners Report:\nThe completed report should be returned in this format as an Excel spreadsheet attachment to regulatory.reports@fca.org.uk.\nWe recommend submissions are password protected with the password sent under separate email cover.\n\nPlease note that the EBA requires High Earners information to be reported within payment brackets of EUR 1m.  If you have High Earners in different brackets and/or in different countries, you will need to use the listboxes in the return to report these. It is recommended that you read the example of how to use the listboxes within the guidance notes prior to completing this return.\n\n"]
[]
[]
[]
[null,"If you have no staff earning EUR 1 million or over in total remuneration within the performance year, then you have no High Earners and may provide a nil return (either by emailing the address above to confirm, or by indicating this using the facility provided within the template)."]
[]
[null,"If your figures are being reported under a group return to the PRA please notify the FCA using the email address above."]

{"sheet":"i","index":1,"n_rows":74,"n_cols":15,"rows_kept":74,"cut":false,"hidden":false,"merged":[[3,2,3,3],[5,5,5,7],[34,1,34,6],[72,7,73,14],[71,7,71,14],[14,2,22,10],[26,2,26,8],[23,2,23,3],[24,2,24,3],[31,7,31,14],[30,2,30,4]]}
[null,null,"High Earners Report"]
[null,null,"Information on the remuneration of High Earners"]
[]
[null,null,"Return to Cover sheet"]
[]
[null,null,"List of EEA Member States",null,null,"List of EEA Member States to be included in submission",null,null,"List of Payment Brackets for"]
[]
[]
[]
[]
[]
[]
[]
[]
[null,null,"Firms should submit a separate template for each EEA Member State where the group is operating and for each payment bracket of EUR1m.\n\nUsing the boxes above, please complete one payment bracket template for every group of High Earners who fall within that bracket for total remuneration.  An example of how to use the listboxes is included within the guidance notes to this form.\n\nu To add an EEA Member State to your submission, click on the member state in the 'EEA Member States' box and click the right chevron. Whilst that member state is selected in the box entitled 'List of Member States to be included in the submission', enter data in the table for that member state.  To add payment brackets for that state please use the button above.\n\nu To enter data for another EEA Member State, repeat the above step.\n\nu To remove a member state from your submission list, select it and press the left chevron.\n\nu To review data entered for each Member State and payment bracket, select the relevant State and bracket in your submission list and review the data entered."]
[]
[]
[]
[]
[]
[]
[]
[]
[null,null,"Selected State"]
[null,null,"Selected Payment Bracket"]
[]
[null,2,"Do you wish to submit a Nil return for the country selected?"]
[null,null,null,"Auto-calculating"]
[null,null,null,"Editable"]
[]
[null,null,"Currency Calculator - X to EUR"]
[null,null,null,null,null,null,null,"Please do not alter the format of this template as it will result in the submission being rejected"]
[null,"Business areas:",null,null,null,null,null,"A","B","C","D","E","F","G","H"]
[]
[null,"Please report remuneration in EUR and in actual numbers.\n\nIf not a nil return - figures should be entered as '0' where there is no data to report.",null,null,null,null,null,"MB Supervisory Function","MB Management Function","Investment Banking","Retail Banking","Asset Management","Corporate Functions","Independent Control Functions","All other"]
[]
[null,4,"Number of individuals in senior management (FTE)"]
[null,5,"Number of individuals in control functions (FTE)"]
[null,6,"Number of other staff (FTE)"]
[]
[null,7,"Total number of High Earners (Individuals)"]
[null,null,"Of which: "]
[null,8,"Identified Staff (Individuals)"]
[]
[null,9,"Total fixed remuneration (EUR)",null,null,null,null,{"$f":"SUM(H47:H49)","v":0},{"$f":"SUM(I47:I49)","v":0},0,0,0,0,0,0]
[null,null,"Of which:"]
[null,10,"Fixed in cash"]
[null,11,"Fixed in shares and share-linked instruments"]
[null,12,"Fixed in other types of instruments"]
[]
[null,13,"Total variable remuneration (EUR)",null,null,null,null,{"$f":"SUM(H53:H55)","v":0},{"$f":"SUM(I53:I55)","v":0},0,0,0,0,0,0]
[null,null,"Of which:"]
[null,14,"Variable in cash"]
[null,15,"Variable in shares and share-linked instruments"]
[null,16,"Variable in other types of instruments"]
[]
[null,17,"Total amount of variable remuneration awarded in year which has been deferred (EUR)",null,null,null,null,{"$f":"SUM(H59:H61)","v":0},{"$f":"SUM(I59:I61)","v":0},0,0,0,0,0,0]
[null,null,"Of which:"]
[null,18,"Deferred variable in cash for year"]
[null,19,"Deferred variable in shares and share-linked instruments for year"]
[null,20,"Deferred variable in other types of instruments in year"]
[]
[null,"Additional information regarding the amount of total variable remuneration for High Earners"]
[]
[null,21,"Number of beneficiaries of severance payments (Individuals)"]
[null,22,"Total amount of severance payments paid in year (EUR)"]
[null,23,"Total amount of contributions to discretionary pension benefits in year (EUR)"]
[null,24,"Total amount of variable remuneration awarded for multi-year periods"]
[null,null,"under programmes which are not revolved annually (EUR)"]
[]
[null,"Supplementary information"]
[null,null,null,null,null,null,null,"A"]
[null,25,"Please indicate the function of all staff who cannot be included in a"]
[null,null,"business area above and are therefore categorised as 'all other'"]

{"sheet":"States","index":2,"n_rows":32,"n_cols":176,"rows_kept":32,"cut":false,"hidden":false,"merged":[]}
["EEA Countries","Survey Countries","Payment Brackets","Bulgaria ","EUR 3-4M","_iA10","_iA11","_iA12","_iA13","_iA14","_iA15","_iA16","_iA17","_iA18","_iA19","_iA20","_iA21","_iA22","_iA23","_iA24","_iA25","_iA4","_iA5","_iA6","_iA7","_iA8","_iA9","_iB10","_iB11","_iB12","_iB13","_iB14","_iB15","_iB16","_iB17","_iB18","_iB19","_iB20","_iB21","_iB22","_iB23","_iB24","_iB4","_iB5","_iB6","_iB7","_iB8","_iB9","_iC10","_iC11","_iC12","_iC13","_iC14","_iC15","_iC16","_iC17","_iC18","_iC19","_iC20","_iC21","_iC22","_iC23","_iC24","_iC4","_iC5","_iC6","_iC7","_iC8","_iC9","_iD10","_iD11","_iD12","_iD13","_iD14","_iD15","_iD16","_iD17","_iD18","_iD19","_iD20","_iD21","_iD22","_iD23","_iD24","_iD4","_iD5","_iD6","_iD7","_iD8","_iD9","_iE10","_iE11","_iE12","_iE13","_iE14","_iE15","_iE16","_iE17","_iE18","_iE19","_iE20","_iE21","_iE22","_iE23","_iE24","_iE4","_iE5","_iE6","_iE7","_iE8","_iE9","_iF10","_iF11","_iF12","_iF13","_iF14","_iF15","_iF16","_iF17","_iF18","_iF19","_iF20","_iF21","_iF22","_iF23","_iF24","_iF4","_iF5","_iF6","_iF7","_iF8","_iF9","_iG10","_iG11","_iG12","_iG13","_iG14","_iG15","_iG16","_iG17","_iG18","_iG19","_iG20","_iG21","_iG22","_iG23","_iG24","_iG4","_iG5","_iG6","_iG7","_iG8","_iG9","_iH10","_iH11","_iH12","_iH13","_iH14","_iH15","_iH16","_iH17","_iH18","_iH19","_iH20","_iH21","_iH22","_iH23","_iH24","_iH4","_iH5","_iH6","_iH7","_iH8","_iH9","_iN0","_sN0"]
["United Kingdom",null,{"$f":"\"EUR \" & D3 & \"-\" &D3+1 & \"M\"","v":"EUR 1-2M"},null,0,null,null,null,null,null,null,null,null,null,null,null,null,null,null,"austria",null,null,null,null,null,null,null,null,null,"belgium",null,"3-4m",null,null,null,null,null,null,null,null,"asd",null,null,null,null,null,null,null,null,null,null,null,null,null,null,null,null,null,null,null,null,"asd",null,null,null,null,null,null,null,null,null,"is",null,null,null,null,null,null,null,null,null,null,null,null,null,null,null,null,null,null,null,null,null,null,null,null,null,null,null,null,null,null,null,null,null,null,null,null,null,null,null,null,null,"the",null,null,null,null,null,null,null,null,null,null,null,null,null,null,null,null,null,null,null,null,null,null,null,null,null,null,null,null,null,null,null,null,null,null,null,null,null,null,null,null,null,"one",null,null,null,null,null,null,null,null,null,null,null,null,null,null,null,null,"N",null,"N"]
["Austria",null,"EUR 2-3M",{"$f":"D2+1","v":1}]
["Belgium ",null,"EUR 3-4M",{"$f":"D3+1","v":2}]
["Bulgaria ",null,"EUR 4-5M",3]
["Croatia",null,"EUR 5-6M",4]
["Cyprus",null,"EUR 6-7M",5]
["Czech Republic ",null,"EUR 7-8M",6]
["Denmark ",null,"EUR 8-9M",7]
["Estonia ",null,"EUR 9-10M",8]
["Finland ",null,"EUR 10-11M",9]
["France ",null,"EUR 11-12M",10]
["Germany ",null,"EUR 12-13M",11]
["Greece ",null,"EUR 13-14M",12]
["Hungary ",null,"EUR 14-15M",13]
["Iceland ",null,"EUR 15-16M",14]
["Ireland ",null,"EUR 16-17M",15]
["Italy ",null,"EUR 17-18M",16]
["Latvia ",null,"EUR 18-19M",17]
["Liechtenstein ",null,"EUR 19-20M",18]
["Lithuania ",null,"EUR 20-21M",19]
["Luxembourg ",null,"EUR 21-22M",20]
["Malta ",null,"EUR 22-23M",21]
["Netherlands ",null,"EUR 23-24M",22]
["Norway ",null,"EUR 24-25M",23]
["Poland ",null,"EUR 25-26M",24]
["Portugal ",null,"EUR 26-27M",25]
["Romania ",null,"EUR 27-28M",26]
["Slovakia ",null,"EUR 28-29M",27]
["Slovenia ",null,null,28]
["Spain "]
["Sweden "]

{"sheet":"Instructions_Rem","index":3,"n_rows":55,"n_cols":3,"rows_kept":55,"cut":false,"hidden":false,"merged":[[6,0,8,7],[10,0,10,7],[30,2,30,7],[35,2,35,6],[23,0,23,7],[25,0,25,7],[26,0,26,7],[27,0,27,7],[28,0,28,7],[13,0,13,8],[15,0,15,8],[17,0,17,8],[19,0,19,8],[21,0,21,7],[38,2,38,6],[41,2,41,7],[46,2,46,7],[49,2,49,7],[54,2,54,7]]}
["Guidance notes for High Earners Report"]
[]
["Return to Cover sheet"]
[]
["Using the listboxes to report"]
[]
["The EBA require High Earners data broken into payment brackets of EUR 1 million.  The template allows this to be reported using the listboxes at the top of the template.  An example of how to use these is included below.\n\nUK Firm X has 3 High Earners in 2 EEA states; 2 in France and 1 in the UK.  The High Earners in France earn EUR 2 million and EUR 5 million respectively, while the UK High Earner earns EUR 1.1 million.\n\nUsing the listboxes, Firm X should select France and the UK from the first and, using the right chevron, move them into the second.  To add payment brackets for France (in this example brackets 2-3 million and 5-6 million) the firm should click the 'Add/Amend Payment Brackets' button and select the relevant brackets from the list (the same process will apply for the UK brackets).  Once selected, the template will allow the firm to enter the relevant details for the High Earners into the tables by clicking on each bracket to select it.\n\nThe template saves any data entered into it, allowing firms to click between tabs without losing data previously entered."]
[]
[]
[]
["Payment brackets\n\nEach payment bracket should be read as X million up to, but not including, X+1million, e.g. 1-2 million is 1 million up to, but not including, 2 million and so on.\n"]
[]
[]
["Financial year for which the remuneration is awarded\n\nA firm’s financial year should be designated by reference to the calendar year in which it ends. \nFor example, if a firm’s accounting reference date is 31 March 2013, the financial year that begins on 1 April 2013  and ends on 31 March 2014 will be the firm’s 2014 financial year.\n"]
[]
["Consolidation\n\nWhen reporting on a consolidated basis as a UK lead regulated group, firms should where possible treat the consolidation group as a single entity (i.e. line-by-line) rather than on an aggregation basis."]
[]
["Currency\n\nFirms must report in Euros. To convert into EUR, firms must use the rates published by the European Commission for financial \nprogramming and budget for December of the reported year. The table is published on the European Commission’s website:\n\nhttp://ec.europa.eu/budget/contracts_grants/info_contracts/inforeuro/inforeuro_en.cfm\n\nThe table contains monthly exchange rates. A list sorted by country name can be generated using the ‘access by list of countries’ function. \nInstitutions should use the exchange rate applicable for the month in which the financial year ended.  A link to the calculator is included on the return.\n\nFigures should be reported in actual numbers rather than thousands/millions.\n\n"]
[]
["Information to be collected \n\na) High earners should be classified under the EEA State, function or business area and \nresponsibility where they carry out the predominant part of their business activities. \nThe full amount of remuneration awarded to the relevant high earner within the \ngroup or firm should be reported under this EEA state, function or business area and \nresponsibility.\n\nb) If the predominant areas for one high earner have the same weight, the firm should \nallocate the high earner and his remuneration taking into account the allocation of \nother high earners, so that the report best reflects the distribution of high earners\nwithin the firm.\n\nc) For each high earner, figures should only be reported once and the full amounts \nshould be assigned to one EEA state, one function or business area and responsibility \nonly.\n\nd) High earners who carry out professional activities both within and outside the EEA\nshould be classified under an EEA state only if they carry the predominant part of \ntheir professional activities within the EEA. Otherwise, figures should not be reported."]
[]
["Data elements\n\nThese are referred to by row first and then by column, so data element 2B will be in row 2 \nand column B.\n"]
[]
["Separate templates\n\nFirms should submit a separate template for each EEA Member State where the group is operating.\n"]
[]
["Definitions\n\nFor the purpose of completing the form, the following terms are defined:\n\nMB Supervisory Function\n\nMembers of the management body in its supervisory function; this includes non-executive directors of any board \nin the scope of consolidation.\n\nMB Management Function\n\nMembers of the management body in its management function who have executive functions within the \nmanagement body; this includes all executive directors of any board in the scope of consolidation.\n\nInvestment Banking \n\nInclude corporate finance advice services, private equity, capital markets, trading and sales.\n\nRetail Banking \n\nInclude total lending activity (to individuals and enterprises).\n\nAsset Management \n\nInclude portfolio management, managing of UCITS and other forms of asset management.\n\n"]
["Corporate Functions \n\nAll functions that have responsibilities for the whole institution at the consolidated level and for subsidiaries with \nsuch functions at the solo level, e.g. Human Resources, IT.\n\nIndependent Control Functions\n\nStaff active in the independent risk management, compliance and internal audit functions as described in the \nEBA’s guidelines on internal governance. Such reporting requirements should apply to these functions at the \nconsolidated level and for subsidiaries with such functions at the solo level.\n\nAll Other \n\nThis column should include staff that cannot be allocated to one of the designated business areas.\n\nSenior management \n\nAs defined in the Handbook Glossary that is those persons who are a natural person and who exercise executive functions \nin an institution and who are responsible and accountable to the management body for the day-to-day management of the institution.\n"]
["Control Functions\n\nControl functions comprise control functions within the business units and the independent compliance, risk control \nand internal audit function.\n\nHigh Earners \n\nAs defined in the Handbook Glossary that is an employee whose total annual remuneration is EUR 1 million or more per year or \nits equivalent in another currency determined by reference to the conversion rate applicable to the corresponding High \nEarners Report under SUP 16.\n\nIdentified Staff \n\nStaff whose professional activities have a material impact on the firm’s risk profile in accordance with Regulation \n(EU) 604/2014 (Regulatory technical standards to identify staff who are material risk takers). For data relating to the \nperformance year 2013, identified staff are those whose professional activities have a material impact on the firm’s \nrisk profile in accordance with SYSC 19A.3.4R.\n\nFixed remuneration \n\nFixed remuneration includes payments, proportionate regular (non-discretionary) pension contributions or \nbenefits (where they are without consideration of any performance criteria).\n"]
["Variable remuneration \n\nVariable remuneration includes additional payments or benefits depending on performance or, in exceptional circumstances, other contractual elements but not those which form part of routine employment packages (such as healthcare, childcare facilities or proportionate regular pension contributions). Both monetary and non-monetary benefits should be included. Amounts should be reported gross, without any reduction due to the application of the \ndiscount rate for variable remuneration for the categories of total variable remuneration, variable in cash, variable in shares and share-linked instruments, and variable in other types of instruments.\n\nVariable remuneration in other types of instruments\nDeferred variable remuneration in other types of instrument\n\nInstruments in accordance with Commission Delegated Regulation (EU) No 527/2014 (Regulatory technical standards specifying the classes of instruments that adequately reflect the credit quality of a firm as a going concern and are appropriate to be used for the purposes of variable remuneration).\n\nDeferred remuneration \n\nShould be determined with reference to SYSC 19A.3.49R.  Amounts should be reported gross, without any reduction due to the application of the discount rate for deferred variable remuneration for the categories of total deferred variable remuneration, deferred variable in cash, deferred variable in shares and share-linked instruments, and deferred variable in other types of instruments.\n\nDiscretionary pension benefits\n\nAs defined in the Glossary with reference to article 4(1)(73) of the EU CRR which means enhanced pension benefits granted on a discretionary basis by a firm to an employee as part of that employee’s variable remuneration package, which do not include accrued benefits granted to an employee under the terms of the company pension scheme."]
[]
["Specific guidance on data fields\n\n\n","Payment Bracket","Figures should be provided within value brackets of \nEUR 1 million (e.g. EUR 1 million to less than EUR \n2 million, EUR 2 million to less than EUR 3 million \netc.)."]
[]
[]
[null,"Business Areas"]
[]
[null,"4A-6H - Individuals","The numbers of staff in the categories should be \nexpressed in full time equivalents (FTEs) and be \nbased on year-end numbers."]
[]
[]
[null,"9A-16H - Fixed Remuneration, Variable Remuneration","Deferred fixed and variable remuneration should not \nbe included in these fields."]
[]
[]
[null,"17A-20H - Deferred Remuneration","Includes deferred variable remuneration."]
[]
[]
[null,"Additional information regarding the amount of total variable remuneration"]
[]
[null,"22A-H - Severance Payments","The total monetary value of severance payments in \nthe financial year.\n"]
[]
[]
[null,"24A-H - Variable remuneration for \nmulti-year periods which are not \nrevolved annually","Remuneration awarded based on multi-year accrual periods that do not revolve on an annual basis, i.e. where institutions do not start a new multi-year period every year, should be fully allocated to the \nperformance year in which the remuneration was awarded, without consideration of the point in time when the variable remuneration is effectively paid. These amounts should be reported separately to allow a further analysis of fluctuations of the variable remuneration and should not be deducted from the amount of variable remuneration reported.\n"]
[]
[]
[null,"Supplemnetary Information"]
[]
[null,"25A - Staff categorised as 'all other'","For staff included in column H ‘all other’, institutions \nmust provide explanatory text including the business \narea in which those staff sit.\n"]

{"sheet":"Data","index":4,"n_rows":900,"n_cols":173,"rows_kept":900,"cut":false,"hidden":false,"merged":[]}
["State","Bracket","Included","_iA4","_iA5","_iA6","_iA7","_iA8","_iA9","_iA10","_iA11","_iA12","_iA13","_iA14","_iA15","_iA16","_iA17","_iA18","_iA19","_iA20","_iA21","_iA22","_iA23","_iA24","_iA25","_iB4","_iB5","_iB6","_iB7","_iB8","_iB9","_iB10","_iB11","_iB12","_iB13","_iB14","_iB15","_iB16","_iB17","_iB18","_iB19","_iB20","_iB21","_iB22","_iB23","_iB24","_iC4","_iC5","_iC6","_iC7","_iC8","_iC9","_iC10","_iC11","_iC12","_iC13","_iC14","_iC15","_iC16","_iC17","_iC18","_iC19","_iC20","_iC21","_iC22","_iC23","_iC24","_iD4","_iD5","_iD6","_iD7","_iD8","_iD9","_iD10","_iD11","_iD12","_iD13","_iD14","_iD15","_iD16","_iD17","_iD18","_iD19","_iD20","_iD21","_iD22","_iD23","_iD24","_iE4","_iE5","_iE6","_iE7","_iE8","_iE9","_iE10","_iE11","_iE12","_iE13","_iE14","_iE15","_iE16","_iE17","_iE18","_iE19","_iE20","_iE21","_iE22","_iE23","_iE24","_iF4","_iF5","_iF6","_iF7","_iF8","_iF9","_iF10","_iF11","_iF12","_iF13","_iF14","_iF15","_iF16","_iF17","_iF18","_iF19","_iF20","_iF21","_iF22","_iF23","_iF24","_iG4","_iG5","_iG6","_iG7","_iG8","_iG9","_iG10","_iG11","_iG12","_iG13","_iG14","_iG15","_iG16","_iG17","_iG18","_iG19","_iG20","_iG21","_iG22","_iG23","_iG24","_iH4","_iH5","_iH6","_iH7","_iH8","_iH9","_iH10","_iH11","_iH12","_iH13","_iH14","_iH15","_iH16","_iH17","_iH18","_iH19","_iH20","_iH21","_iH22","_iH23","_iH24","_iN0"]
["Austria","EUR 1-2M","No",null,null,null,null,null,null,null,null,null,null,null,null,null,null,null,null,null,null,null,null,null,null,null,null,null,null,null,null,null,null,null,null,null,null,null,null,null,null,null,null,null,null,null,null,null,null,null,null,null,null,null,null,null,null,null,null,null,null,null,null,null,null,null,null,null,null,null,null,null,null,null,null,null,null,null,null,null,null,null,null,null,null,null,null,null,null,null,null,null,null,null,null,null,null,null,null,null,null,null,null,null,null,null,null,null,null,null,null,null,null,null,null,null,null,null,null,null,null,null,null,null,null,null,null,null,null,null,null,null,null,null,null,null,null,null,null,null,null,null,null,0,null,null,null,null,null,null,null,null,null,null,null,null,0,null,null,null,0,null,null,null,0]
["Austria","EUR 2-3M","No",null,null,null,null,null,null,null,null,null,null,null,null,null,null,null,null,null,null,null,null,null,null,null,null,null,null,null,null,null,null,null,null,null,null,null,null,null,null,null,null,null,null,null,null,null,null,null,null,null,null,null,null,null,null,null,null,null,null,null,null,null,null,null,null,null,null,null,null,null,null,null,null,null,null,null,null,null,null,null,null,null,null,null,null,null,null,null,null,null,null,null,null,null,null,null,null,null,null,null,null,null,null,null,null,null,null,null,null,null,null,null,null,null,null,null,null,null,null,null,null,null,null,null,null,null,null,null,null,null,null,null,null,null,null,null,null,null,null,null,null,0,null,null,null,null,null,null,null,null,null,null,null,null,0,null,null,null,0,null,null,null,0]
["Austria","EUR 3-4M","No"]
["Austria","EUR 4-5M","No"]
["Austria","EUR 5-6M","No"]
["Austria","EUR 6-7M","No"]
["Austria","EUR 7-8M","No"]
["Austria","EUR 8-9M","No"]
["Austria","EUR 9-10M","No"]
["Austria","EUR 10-11M","No"]
["Austria","EUR 11-12M","No"]
["Austria","EUR 12-13M","No"]
["Austria","EUR 13-14M","No"]
["Austria","EUR 14-15M","No"]
["Austria","EUR 15-16M","No"]
["Austria","EUR 16-17M","No"]
["Austria","EUR 17-18M","No"]
["Austria","EUR 18-19M","No"]
["Austria","EUR 19-20M","No"]
["Austria","EUR 20-21M","No"]
["Austria","EUR 21-22M","No"]
["Austria","EUR 22-23M","No"]
["Austria","EUR 23-24M","No"]
["Austria","EUR 24-25M","No"]
["Austria","EUR 25-26M","No"]
["Austria","EUR 26-27M","No"]
["Austria","EUR 27-28M","No"]
["Austria","EUR 28-29M","No"]
["Austria","EUR 29-30M","No"]
["Belgium ","EUR 1-2M","No",null,null,null,null,null,null,null,null,null,null,null,null,null,null,null,null,null,null,null,null,null,null,null,null,null,null,null,null,null,null,null,null,null,null,null,null,null,null,null,null,null,null,null,null,null,null,null,null,null,null,null,null,null,null,null,null,null,null,null,null,null,null,null,null,null,null,null,null,null,null,null,null,null,null,null,null,null,null,null,null,null,null,null,null,null,null,null,null,null,null,null,null,null,null,null,null,null,null,null,null,null,null,null,null,null,null,null,null,null,null,null,null,null,null,null,null,null,null,null,null,null,null,null,null,null,null,null,null,null,null,null,null,null,null,null,null,null,null,null,null,0,null,null,null,null,null,null,null,null,null,null,null,null,0,null,null,null,0,null,null,null,0]
["Belgium ","EUR 2-3M","No"]
["Belgium ","EUR 3-4M","No"]
["Belgium ","EUR 4-5M","No"]
["Belgium ","EUR 5-6M","No"]
["Belgium ","EUR 6-7M","No"]
["Belgium ","EUR 7-8M","No"]
["Belgium ","EUR 8-9M","No"]
["Belgium ","EUR 9-10M","No"]
["Belgium ","EUR 10-11M","No"]
["Belgium ","EUR 11-12M","No"]
["Belgium ","EUR 12-13M","No"]
["Belgium ","EUR 13-14M","No"]
["Belgium ","EUR 14-15M","No"]
["Belgium ","EUR 15-16M","No"]
["Belgium ","EUR 16-17M","No"]
["Belgium ","EUR 17-18M","No"]
["Belgium ","EUR 18-19M","No"]
["Belgium ","EUR 19-20M","No"]
["Belgium ","EUR 20-21M","No"]
["Belgium ","EUR 21-22M","No"]
["Belgium ","EUR 22-23M","No"]
["Belgium ","EUR 23-24M","No"]
["Belgium ","EUR 24-25M","No"]
["Belgium ","EUR 25-26M","No"]
["Belgium ","EUR 26-27M","No"]
["Belgium ","EUR 27-28M","No"]
["Belgium ","EUR 28-29M","No"]
["Belgium ","EUR 29-30M","No"]
["Bulgaria ","EUR 1-2M","No"]
["Bulgaria ","EUR 2-3M","No",null,null,null,null,null,null,null,null,null,null,null,null,null,null,null,null,null,null,null,null,null,null,null,null,null,null,null,null,null,null,null,null,null,null,null,null,null,null,null,null,null,null,null,null,null,null,null,null,null,null,null,null,null,null,null,null,null,null,null,null,null,null,null,null,null,null,null,null,null,null,null,null,null,null,null,null,null,null,null,null,null,null,null,null,null,null,null,null,null,null,null,null,null,null,null,null,null,null,null,null,null,null,null,null,null,null,null,null,null,null,null,null,null,null,null,null,null,null,null,null,null,null,null,null,null,null,null,null,null,null,null,null,null,null,null,null,null,null,null,null,0,null,null,null,null,null,null,null,null,null,null,null,null,0,null,null,null,0,null,null,null,0]
["Bulgaria ","EUR 3-4M","No"]
["Bulgaria ","EUR 4-5M","No"]
["Bulgaria ","EUR 5-6M","No"]
["Bulgaria ","EUR 6-7M","No"]
["Bulgaria ","EUR 7-8M","No"]
["Bulgaria ","EUR 8-9M","No"]
["Bulgaria ","EUR 9-10M","No"]
["Bulgaria ","EUR 10-11M","No"]
["Bulgaria ","EUR 11-12M","No"]
["Bulgaria ","EUR 12-13M","No"]
["Bulgaria ","EUR 13-14M","No"]
["Bulgaria ","EUR 14-15M","No"]
["Bulgaria ","EUR 15-16M","No"]
["Bulgaria ","EUR 16-17M","No"]
["Bulgaria ","EUR 17-18M","No"]
["Bulgaria ","EUR 18-19M","No"]
["Bulgaria ","EUR 19-20M","No"]
["Bulgaria ","EUR 20-21M","No"]
["Bulgaria ","EUR 21-22M","No"]
["Bulgaria ","EUR 22-23M","No"]
["Bulgaria ","EUR 23-24M","No"]
["Bulgaria ","EUR 24-25M","No"]
["Bulgaria ","EUR 25-26M","No"]
["Bulgaria ","EUR 26-27M","No"]
["Bulgaria ","EUR 27-28M","No"]
["Bulgaria ","EUR 28-29M","No"]
["Bulgaria ","EUR 29-30M","No"]
["Croatia","EUR 1-2M","No"]
["Croatia","EUR 2-3M","No"]
["Croatia","EUR 3-4M","No"]
["Croatia","EUR 4-5M","No"]
["Croatia","EUR 5-6M","No"]
["Croatia","EUR 6-7M","No"]
["Croatia","EUR 7-8M","No"]
["Croatia","EUR 8-9M","No"]
["Croatia","EUR 9-10M","No"]
["Croatia","EUR 10-11M","No"]
["Croatia","EUR 11-12M","No"]
["Croatia","EUR 12-13M","No"]
["Croatia","EUR 13-14M","No"]
["Croatia","EUR 14-15M","No"]
["Croatia","EUR 15-16M","No"]
["Croatia","EUR 16-17M","No"]
["Croatia","EUR 17-18M","No"]
["Croatia","EUR 18-19M","No"]
["Croatia","EUR 19-20M","No"]
["Croatia","EUR 20-21M","No"]
["Croatia","EUR 21-22M","No"]
["Croatia","EUR 22-23M","No"]
["Croatia","EUR 23-24M","No"]
["Croatia","EUR 24-25M","No"]
["Croatia","EUR 25-26M","No"]
["Croatia","EUR 26-27M","No"]
["Croatia","EUR 27-28M","No"]
["Croatia","EUR 28-29M","No"]
["Croatia","EUR 29-30M","No"]
["Cyprus","EUR 1-2M","No"]
["Cyprus","EUR 2-3M","No"]
["Cyprus","EUR 3-4M","No"]
["Cyprus","EUR 4-5M","No"]
["Cyprus","EUR 5-6M","No"]
["Cyprus","EUR 6-7M","No"]
["Cyprus","EUR 7-8M","No"]
["Cyprus","EUR 8-9M","No"]
["Cyprus","EUR 9-10M","No"]
["Cyprus","EUR 10-11M","No"]
["Cyprus","EUR 11-12M","No"]
["Cyprus","EUR 12-13M","No"]
["Cyprus","EUR 13-14M","No"]
["Cyprus","EUR 14-15M","No"]
["Cyprus","EUR 15-16M","No"]
["Cyprus","EUR 16-17M","No"]
["Cyprus","EUR 17-18M","No"]
["Cyprus","EUR 18-19M","No"]
["Cyprus","EUR 19-20M","No"]
["Cyprus","EUR 20-21M","No"]
["Cyprus","EUR 21-22M","No"]
["Cyprus","EUR 22-23M","No"]
["Cyprus","EUR 23-24M","No"]
["Cyprus","EUR 24-25M","No"]
["Cyprus","EUR 25-26M","No"]
["Cyprus","EUR 26-27M","No"]
["Cyprus","EUR 27-28M","No"]
["Cyprus","EUR 28-29M","No"]
["Cyprus","EUR 29-30M","No"]
["Czech Republic ","EUR 1-2M","No"]
["Czech Republic ","EUR 2-3M","No"]
["Czech Republic ","EUR 3-4M","No"]
["Czech Republic ","EUR 4-5M","No"]
["Czech Republic ","EUR 5-6M","No"]
["Czech Republic ","EUR 6-7M","No"]
["Czech Republic ","EUR 7-8M","No"]
["Czech Republic ","EUR 8-9M","No"]
["Czech Republic ","EUR 9-10M","No"]
["Czech Republic ","EUR 10-11M","No"]
["Czech Republic ","EUR 11-12M","No"]
["Czech Republic ","EUR 12-13M","No"]
["Czech Republic ","EUR 13-14M","No"]
["Czech Republic ","EUR 14-15M","No"]
["Czech Republic ","EUR 15-16M","No"]
["Czech Republic ","EUR 16-17M","No"]
["Czech Republic ","EUR 17-18M","No"]
["Czech Republic ","EUR 18-19M","No"]
["Czech Republic ","EUR 19-20M","No"]
["Czech Republic ","EUR 20-21M","No"]
["Czech Republic ","EUR 21-22M","No"]
["Czech Republic ","EUR 22-23M","No"]
["Czech Republic ","EUR 23-24M","No"]
["Czech Republic ","EUR 24-25M","No"]
["Czech Republic ","EUR 25-26M","No"]
["Czech Republic ","EUR 26-27M","No"]
["Czech Republic ","EUR 27-28M","No"]
["Czech Republic ","EUR 28-29M","No"]
["Czech Republic ","EUR 29-30M","No"]
["Denmark ","EUR 1-2M","No"]
["Denmark ","EUR 2-3M","No"]
["Denmark ","EUR 3-4M","No"]
["Denmark ","EUR 4-5M","No"]
["Denmark ","EUR 5-6M","No"]
["Denmark ","EUR 6-7M","No"]
["Denmark ","EUR 7-8M","No"]
["Denmark ","EUR 8-9M","No"]
["Denmark ","EUR 9-10M","No"]
["Denmark ","EUR 10-11M","No"]
["Denmark ","EUR 11-12M","No"]
["Denmark ","EUR 12-13M","No"]
["Denmark ","EUR 13-14M","No"]
["Denmark ","EUR 14-15M","No"]
["Denmark ","EUR 15-16M","No"]
["Denmark ","EUR 16-17M","No"]
["Denmark ","EUR 17-18M","No"]
["Denmark ","EUR 18-19M","No"]
["Denmark ","EUR 19-20M","No"]
["Denmark ","EUR 20-21M","No"]
["Denmark ","EUR 21-22M","No"]
["Denmark ","EUR 22-23M","No"]
["Denmark ","EUR 23-24M","No"]
["Denmark ","EUR 24-25M","No"]
["Denmark ","EUR 25-26M","No"]
["Denmark ","EUR 26-27M","No"]
["Denmark ","EUR 27-28M","No"]
["Denmark ","EUR 28-29M","No"]
["Denmark ","EUR 29-30M","No"]
["Estonia ","EUR 1-2M","No"]
["Estonia ","EUR 2-3M","No"]
["Estonia ","EUR 3-4M","No"]
["Estonia ","EUR 4-5M","No"]
["Estonia ","EUR 5-6M","No"]
["Estonia ","EUR 6-7M","No"]
["Estonia ","EUR 7-8M","No"]
["Estonia ","EUR 8-9M","No"]
["Estonia ","EUR 9-10M","No"]
["Estonia ","EUR 10-11M","No"]
["Estonia ","EUR 11-12M","No"]
["Estonia ","EUR 12-13M","No"]
["Estonia ","EUR 13-14M","No"]
["Estonia ","EUR 14-15M","No"]
["Estonia ","EUR 15-16M","No"]
["Estonia ","EUR 16-17M","No"]
["Estonia ","EUR 17-18M","No"]
["Estonia ","EUR 18-19M","No"]
["Estonia ","EUR 19-20M","No"]
["Estonia ","EUR 20-21M","No"]
["Estonia ","EUR 21-22M","No"]
["Estonia ","EUR 22-23M","No"]
["Estonia ","EUR 23-24M","No"]
["Estonia ","EUR 24-25M","No"]
["Estonia ","EUR 25-26M","No"]
["Estonia ","EUR 26-27M","No"]
["Estonia ","EUR 27-28M","No"]
["Estonia ","EUR 28-29M","No"]
["Estonia ","EUR 29-30M","No"]
["Finland ","EUR 1-2M","No"]
["Finland ","EUR 2-3M","No"]
["Finland ","EUR 3-4M","No"]
["Finland ","EUR 4-5M","No"]
["Finland ","EUR 5-6M","No"]
["Finland ","EUR 6-7M","No"]
["Finland ","EUR 7-8M","No"]
["Finland ","EUR 8-9M","No"]
["Finland ","EUR 9-10M","No"]
["Finland ","EUR 10-11M","No"]
["Finland ","EUR 11-12M","No"]
["Finland ","EUR 12-13M","No"]
["Finland ","EUR 13-14M","No"]
["Finland ","EUR 14-15M","No"]
["Finland ","EUR 15-16M","No"]
["Finland ","EUR 16-17M","No"]
["Finland ","EUR 17-18M","No"]
["Finland ","EUR 18-19M","No"]
["Finland ","EUR 19-20M","No"]
["Finland ","EUR 20-21M","No"]
["Finland ","EUR 21-22M","No"]
["Finland ","EUR 22-23M","No"]
["Finland ","EUR 23-24M","No"]
["Finland ","EUR 24-25M","No"]
["Finland ","EUR 25-26M","No"]
["Finland ","EUR 26-27M","No"]
["Finland ","EUR 27-28M","No"]
["Finland ","EUR 28-29M","No"]
["Finland ","EUR 29-30M","No"]
["France ","EUR 1-2M","No"]
["France ","EUR 2-3M","No"]
["France ","EUR 3-4M","No"]
["France ","EUR 4-5M","No"]
["France ","EUR 5-6M","No"]
["France ","EUR 6-7M","No"]
["France ","EUR 7-8M","No"]
["France ","EUR 8-9M","No"]
["France ","EUR 9-10M","No"]
["France ","EUR 10-11M","No"]
["France ","EUR 11-12M","No"]
["France ","EUR 12-13M","No"]
["France ","EUR 13-14M","No"]
["France ","EUR 14-15M","No"]
["France ","EUR 15-16M","No"]
["France ","EUR 16-17M","No"]
["France ","EUR 17-18M","No"]
["France ","EUR 18-19M","No"]
["France ","EUR 19-20M","No"]
["France ","EUR 20-21M","No"]
["France ","EUR 21-22M","No"]
["France ","EUR 22-23M","No"]
["France ","EUR 23-24M","No"]
["France ","EUR 24-25M","No"]
["France ","EUR 25-26M","No"]
["France ","EUR 26-27M","No"]
["France ","EUR 27-28M","No"]
["France ","EUR 28-29M","No"]
["France ","EUR 29-30M","No"]
["Germany ","EUR 1-2M","No"]
["Germany ","EUR 2-3M","No"]
["Germany ","EUR 3-4M","No"]
["Germany ","EUR 4-5M","No"]
["Germany ","EUR 5-6M","No"]
["Germany ","EUR 6-7M","No"]
["Germany ","EUR 7-8M","No"]
["Germany ","EUR 8-9M","No"]
["Germany ","EUR 9-10M","No"]
["Germany ","EUR 10-11M","No"]
["Germany ","EUR 11-12M","No"]
["Germany ","EUR 12-13M","No"]
["Germany ","EUR 13-14M","No"]
["Germany ","EUR 14-15M","No"]
["Germany ","EUR 15-16M","No"]
["Germany ","EUR 16-17M","No"]
["Germany ","EUR 17-18M","No"]
["Germany ","EUR 18-19M","No"]
["Germany ","EUR 19-20M","No"]
["Germany ","EUR 20-21M","No"]
["Germany ","EUR 21-22M","No"]
["Germany ","EUR 22-23M","No"]
["Germany ","EUR 23-24M","No"]
["Germany ","EUR 24-25M","No"]
["Germany ","EUR 25-26M","No"]
["Germany ","EUR 26-27M","No"]
["Germany ","EUR 27-28M","No"]
["Germany ","EUR 28-29M","No"]
["Germany ","EUR 29-30M","No"]
["Greece ","EUR 1-2M","No"]
["Greece ","EUR 2-3M","No"]
["Greece ","EUR 3-4M","No"]
["Greece ","EUR 4-5M","No"]
["Greece ","EUR 5-6M","No"]
["Greece ","EUR 6-7M","No"]
["Greece ","EUR 7-8M","No"]
["Greece ","EUR 8-9M","No"]
["Greece ","EUR 9-10M","No"]
["Greece ","EUR 10-11M","No"]
["Greece ","EUR 11-12M","No"]
["Greece ","EUR 12-13M","No"]
["Greece ","EUR 13-14M","No"]
["Greece ","EUR 14-15M","No"]
["Greece ","EUR 15-16M","No"]
["Greece ","EUR 16-17M","No"]
["Greece ","EUR 17-18M","No"]
["Greece ","EUR 18-19M","No"]
["Greece ","EUR 19-20M","No"]
["Greece ","EUR 20-21M","No"]
["Greece ","EUR 21-22M","No"]
["Greece ","EUR 22-23M","No"]
["Greece ","EUR 23-24M","No"]
["Greece ","EUR 24-25M","No"]
["Greece ","EUR 25-26M","No"]
["Greece ","EUR 26-27M","No"]
["Greece ","EUR 27-28M","No"]
["Greece ","EUR 28-29M","No"]
["Greece ","EUR 29-30M","No"]
["Hungary ","EUR 1-2M","No"]
["Hungary ","EUR 2-3M","No"]
["Hungary ","EUR 3-4M","No"]
["Hungary ","EUR 4-5M","No"]
["Hungary ","EUR 5-6M","No"]
["Hungary ","EUR 6-7M","No"]
["Hungary ","EUR 7-8M","No"]
["Hungary ","EUR 8-9M","No"]
["Hungary ","EUR 9-10M","No"]
["Hungary ","EUR 10-11M","No"]
["Hungary ","EUR 11-12M","No"]
["Hungary ","EUR 12-13M","No"]
["Hungary ","EUR 13-14M","No"]
["Hungary ","EUR 14-15M","No"]
["Hungary ","EUR 15-16M","No"]
["Hungary ","EUR 16-17M","No"]
["Hungary ","EUR 17-18M","No"]
["Hungary ","EUR 18-19M","No"]
["Hungary ","EUR 19-20M","No"]
["Hungary ","EUR 20-21M","No"]
["Hungary ","EUR 21-22M","No"]
["Hungary ","EUR 22-23M","No"]
["Hungary ","EUR 23-24M","No"]
["Hungary ","EUR 24-25M","No"]
["Hungary ","EUR 25-26M","No"]
["Hungary ","EUR 26-27M","No"]
["Hungary ","EUR 27-28M","No"]
["Hungary ","EUR 28-29M","No"]
["Hungary ","EUR 29-30M","No"]
["Iceland ","EUR 1-2M","No"]
["Iceland ","EUR 2-3M","No"]
["Iceland ","EUR 3-4M","No"]
["Iceland ","EUR 4-5M","No"]
["Iceland ","EUR 5-6M","No"]
["Iceland ","EUR 6-7M","No"]
["Iceland ","EUR 7-8M","No"]
["Iceland ","EUR 8-9M","No"]
["Iceland ","EUR 9-10M","No"]
["Iceland ","EUR 10-11M","No"]
["Iceland ","EUR 11-12M","No"]
["Iceland ","EUR 12-13M","No"]
["Iceland ","EUR 13-14M","No"]
["Iceland ","EUR 14-15M","No"]
["Iceland ","EUR 15-16M","No"]
["Iceland ","EUR 16-17M","No"]
["Iceland ","EUR 17-18M","No"]
["Iceland ","EUR 18-19M","No"]
["Iceland ","EUR 19-20M","No"]
["Iceland ","EUR 20-21M","No"]
["Iceland ","EUR 21-22M","No"]
["Iceland ","EUR 22-23M","No"]
["Iceland ","EUR 23-24M","No"]
["Iceland ","EUR 24-25M","No"]
["Iceland ","EUR 25-26M","No"]
["Iceland ","EUR 26-27M","No"]
["Iceland ","EUR 27-28M","No"]
["Iceland ","EUR 28-29M","No"]
["Iceland ","EUR 29-30M","No"]
["Ireland ","EUR 1-2M","No"]
["Ireland ","EUR 2-3M","No"]
["Ireland ","EUR 3-4M","No"]
["Ireland ","EUR 4-5M","No"]
["Ireland ","EUR 5-6M","No"]
["Ireland ","EUR 6-7M","No"]
["Ireland ","EUR 7-8M","No"]
["Ireland ","EUR 8-9M","No"]
["Ireland ","EUR 9-10M","No"]
["Ireland ","EUR 10-11M","No"]
["Ireland ","EUR 11-12M","No"]
["Ireland ","EUR 12-13M","No"]
["Ireland ","EUR 13-14M","No"]
["Ireland ","EUR 14-15M","No"]
["Ireland ","EUR 15-16M","No"]
["Ireland ","EUR 16-17M","No"]
["Ireland ","EUR 17-18M","No"]
["Ireland ","EUR 18-19M","No"]
["Ireland ","EUR 19-20M","No"]
["Ireland ","EUR 20-21M","No"]
["Ireland ","EUR 21-22M","No"]
["Ireland ","EUR 22-23M","No"]
["Ireland ","EUR 23-24M","No"]
["Ireland ","EUR 24-25M","No"]
["Ireland ","EUR 25-26M","No"]
["Ireland ","EUR 26-27M","No"]
["Ireland ","EUR 27-28M","No"]
["Ireland ","EUR 28-29M","No"]
["Ireland ","EUR 29-30M","No"]
["Italy ","EUR 1-2M","No"]
["Italy ","EUR 2-3M","No"]
["Italy ","EUR 3-4M","No"]
["Italy ","EUR 4-5M","No"]
["Italy ","EUR 5-6M","No"]
["Italy ","EUR 6-7M","No"]
["Italy ","EUR 7-8M","No"]
["Italy ","EUR 8-9M","No"]
["Italy ","EUR 9-10M","No"]
["Italy ","EUR 10-11M","No"]
["Italy ","EUR 11-12M","No"]
["Italy ","EUR 12-13M","No"]
["Italy ","EUR 13-14M","No"]
["Italy ","EUR 14-15M","No"]
["Italy ","EUR 15-16M","No"]
["Italy ","EUR 16-17M","No"]
["Italy ","EUR 17-18M","No"]
["Italy ","EUR 18-19M","No"]
["Italy ","EUR 19-20M","No"]
["Italy ","EUR 20-21M","No"]
["Italy ","EUR 21-22M","No"]
["Italy ","EUR 22-23M","No"]
["Italy ","EUR 23-24M","No"]
["Italy ","EUR 24-25M","No"]
["Italy ","EUR 25-26M","No"]
["Italy ","EUR 26-27M","No"]
["Italy ","EUR 27-28M","No"]
["Italy ","EUR 28-29M","No"]
["Italy ","EUR 29-30M","No"]
["Latvia ","EUR 1-2M","No"]
["Latvia ","EUR 2-3M","No"]
["Latvia ","EUR 3-4M","No"]
["Latvia ","EUR 4-5M","No"]
["Latvia ","EUR 5-6M","No"]
["Latvia ","EUR 6-7M","No"]
["Latvia ","EUR 7-8M","No"]
["Latvia ","EUR 8-9M","No"]
["Latvia ","EUR 9-10M","No"]
["Latvia ","EUR 10-11M","No"]
["Latvia ","EUR 11-12M","No"]
["Latvia ","EUR 12-13M","No"]
["Latvia ","EUR 13-14M","No"]
["Latvia ","EUR 14-15M","No"]
["Latvia ","EUR 15-16M","No"]
["Latvia ","EUR 16-17M","No"]
["Latvia ","EUR 17-18M","No"]
["Latvia ","EUR 18-19M","No"]
["Latvia ","EUR 19-20M","No"]
["Latvia ","EUR 20-21M","No"]
["Latvia ","EUR 21-22M","No"]
["Latvia ","EUR 22-23M","No"]
["Latvia ","EUR 23-24M","No"]
["Latvia ","EUR 24-25M","No"]
["Latvia ","EUR 25-26M","No"]
["Latvia ","EUR 26-27M","No"]
["Latvia ","EUR 27-28M","No"]
["Latvia ","EUR 28-29M","No"]
["Latvia ","EUR 29-30M","No"]
["Liechtenstein ","EUR 1-2M","No"]
["Liechtenstein ","EUR 2-3M","No"]
["Liechtenstein ","EUR 3-4M","No"]
["Liechtenstein ","EUR 4-5M","No"]
["Liechtenstein ","EUR 5-6M","No"]
["Liechtenstein ","EUR 6-7M","No"]
["Liechtenstein ","EUR 7-8M","No"]
["Liechtenstein ","EUR 8-9M","No"]
["Liechtenstein ","EUR 9-10M","No"]
["Liechtenstein ","EUR 10-11M","No"]
["Liechtenstein ","EUR 11-12M","No"]
["Liechtenstein ","EUR 12-13M","No"]
["Liechtenstein ","EUR 13-14M","No"]
["Liechtenstein ","EUR 14-15M","No"]
["Liechtenstein ","EUR 15-16M","No"]
["Liechtenstein ","EUR 16-17M","No"]
["Liechtenstein ","EUR 17-18M","No"]
["Liechtenstein ","EUR 18-19M","No"]
["Liechtenstein ","EUR 19-20M","No"]
["Liechtenstein ","EUR 20-21M","No"]
["Liechtenstein ","EUR 21-22M","No"]
["Liechtenstein ","EUR 22-23M","No"]
["Liechtenstein ","EUR 23-24M","No"]
["Liechtenstein ","EUR 24-25M","No"]
["Liechtenstein ","EUR 25-26M","No"]
["Liechtenstein ","EUR 26-27M","No"]
["Liechtenstein ","EUR 27-28M","No"]
["Liechtenstein ","EUR 28-29M","No"]
["Liechtenstein ","EUR 29-30M","No"]
["Lithuania ","EUR 1-2M","No"]
["Lithuania ","EUR 2-3M","No"]
["Lithuania ","EUR 3-4M","No"]
["Lithuania ","EUR 4-5M","No"]
["Lithuania ","EUR 5-6M","No"]
["Lithuania ","EUR 6-7M","No"]
["Lithuania ","EUR 7-8M","No"]
["Lithuania ","EUR 8-9M","No"]
["Lithuania ","EUR 9-10M","No"]
["Lithuania ","EUR 10-11M","No"]
["Lithuania ","EUR 11-12M","No"]
["Lithuania ","EUR 12-13M","No"]
["Lithuania ","EUR 13-14M","No"]
["Lithuania ","EUR 14-15M","No"]
["Lithuania ","EUR 15-16M","No"]
["Lithuania ","EUR 16-17M","No"]
["Lithuania ","EUR 17-18M","No"]
["Lithuania ","EUR 18-19M","No"]
["Lithuania ","EUR 19-20M","No"]
["Lithuania ","EUR 20-21M","No"]
["Lithuania ","EUR 21-22M","No"]
["Lithuania ","EUR 22-23M","No"]
["Lithuania ","EUR 23-24M","No"]
["Lithuania ","EUR 24-25M","No"]
["Lithuania ","EUR 25-26M","No"]
["Lithuania ","EUR 26-27M","No"]
["Lithuania ","EUR 27-28M","No"]
["Lithuania ","EUR 28-29M","No"]
["Lithuania ","EUR 29-30M","No"]
["Luxembourg ","EUR 1-2M","No"]
["Luxembourg ","EUR 2-3M","No"]
["Luxembourg ","EUR 3-4M","No"]
["Luxembourg ","EUR 4-5M","No"]
["Luxembourg ","EUR 5-6M","No"]
["Luxembourg ","EUR 6-7M","No"]
["Luxembourg ","EUR 7-8M","No"]
["Luxembourg ","EUR 8-9M","No"]
["Luxembourg ","EUR 9-10M","No"]
["Luxembourg ","EUR 10-11M","No"]
["Luxembourg ","EUR 11-12M","No"]
["Luxembourg ","EUR 12-13M","No"]
["Luxembourg ","EUR 13-14M","No"]
["Luxembourg ","EUR 14-15M","No"]
["Luxembourg ","EUR 15-16M","No"]
["Luxembourg ","EUR 16-17M","No"]
["Luxembourg ","EUR 17-18M","No"]
["Luxembourg ","EUR 18-19M","No"]
["Luxembourg ","EUR 19-20M","No"]
["Luxembourg ","EUR 20-21M","No"]
["Luxembourg ","EUR 21-22M","No"]
["Luxembourg ","EUR 22-23M","No"]
["Luxembourg ","EUR 23-24M","No"]
["Luxembourg ","EUR 24-25M","No"]
["Luxembourg ","EUR 25-26M","No"]
["Luxembourg ","EUR 26-27M","No"]
["Luxembourg ","EUR 27-28M","No"]
["Luxembourg ","EUR 28-29M","No"]
["Luxembourg ","EUR 29-30M","No"]
["Malta ","EUR 1-2M","No"]
["Malta ","EUR 2-3M","No"]
["Malta ","EUR 3-4M","No"]
["Malta ","EUR 4-5M","No"]
["Malta ","EUR 5-6M","No"]
["Malta ","EUR 6-7M","No"]
["Malta ","EUR 7-8M","No"]
["Malta ","EUR 8-9M","No"]
["Malta ","EUR 9-10M","No"]
["Malta ","EUR 10-11M","No"]
["Malta ","EUR 11-12M","No"]
["Malta ","EUR 12-13M","No"]
["Malta ","EUR 13-14M","No"]
["Malta ","EUR 14-15M","No"]
["Malta ","EUR 15-16M","No"]
["Malta ","EUR 16-17M","No"]
["Malta ","EUR 17-18M","No"]
["Malta ","EUR 18-19M","No"]
["Malta ","EUR 19-20M","No"]
["Malta ","EUR 20-21M","No"]
["Malta ","EUR 21-22M","No"]
["Malta ","EUR 22-23M","No"]
["Malta ","EUR 23-24M","No"]
["Malta ","EUR 24-25M","No"]
["Malta ","EUR 25-26M","No"]
["Malta ","EUR 26-27M","No"]
["Malta ","EUR 27-28M","No"]
["Malta ","EUR 28-29M","No"]
["Malta ","EUR 29-30M","No"]
["Netherlands ","EUR 1-2M","No"]
["Netherlands ","EUR 2-3M","No"]
["Netherlands ","EUR 3-4M","No"]
["Netherlands ","EUR 4-5M","No"]
["Netherlands ","EUR 5-6M","No"]
["Netherlands ","EUR 6-7M","No"]
["Netherlands ","EUR 7-8M","No"]
["Netherlands ","EUR 8-9M","No"]
["Netherlands ","EUR 9-10M","No"]
["Netherlands ","EUR 10-11M","No"]
["Netherlands ","EUR 11-12M","No"]
["Netherlands ","EUR 12-13M","No"]
["Netherlands ","EUR 13-14M","No"]
["Netherlands ","EUR 14-15M","No"]
["Netherlands ","EUR 15-16M","No"]
["Netherlands ","EUR 16-17M","No"]
["Netherlands ","EUR 17-18M","No"]
["Netherlands ","EUR 18-19M","No"]
["Netherlands ","EUR 19-20M","No"]
["Netherlands ","EUR 20-21M","No"]
["Netherlands ","EUR 21-22M","No"]
["Netherlands ","EUR 22-23M","No"]
["Netherlands ","EUR 23-24M","No"]
["Netherlands ","EUR 24-25M","No"]
["Netherlands ","EUR 25-26M","No"]
["Netherlands ","EUR 26-27M","No"]
["Netherlands ","EUR 27-28M","No"]
["Netherlands ","EUR 28-29M","No"]
["Netherlands ","EUR 29-30M","No"]
["Norway ","EUR 1-2M","No"]
["Norway ","EUR 2-3M","No"]
["Norway ","EUR 3-4M","No"]
["Norway ","EUR 4-5M","No"]
["Norway ","EUR 5-6M","No"]
["Norway ","EUR 6-7M","No"]
["Norway ","EUR 7-8M","No"]
["Norway ","EUR 8-9M","No"]
["Norway ","EUR 9-10M","No"]
["Norway ","EUR 10-11M","No"]
["Norway ","EUR 11-12M","No"]
["Norway ","EUR 12-13M","No"]
["Norway ","EUR 13-14M","No"]
["Norway ","EUR 14-15M","No"]
["Norway ","EUR 15-16M","No"]
["Norway ","EUR 16-17M","No"]
["Norway ","EUR 17-18M","No"]
["Norway ","EUR 18-19M","No"]
["Norway ","EUR 19-20M","No"]
["Norway ","EUR 20-21M","No"]
["Norway ","EUR 21-22M","No"]
["Norway ","EUR 22-23M","No"]
["Norway ","EUR 23-24M","No"]
["Norway ","EUR 24-25M","No"]
["Norway ","EUR 25-26M","No"]
["Norway ","EUR 26-27M","No"]
["Norway ","EUR 27-28M","No"]
["Norway ","EUR 28-29M","No"]
["Norway ","EUR 29-30M","No"]
["Poland ","EUR 1-2M","No"]
["Poland ","EUR 2-3M","No"]
["Poland ","EUR 3-4M","No"]
["Poland ","EUR 4-5M","No"]
["Poland ","EUR 5-6M","No"]
["Poland ","EUR 6-7M","No"]
["Poland ","EUR 7-8M","No"]
["Poland ","EUR 8-9M","No"]
["Poland ","EUR 9-10M","No"]
["Poland ","EUR 10-11M","No"]
["Poland ","EUR 11-12M","No"]
["Poland ","EUR 12-13M","No"]
["Poland ","EUR 13-14M","No"]
["Poland ","EUR 14-15M","No"]
["Poland ","EUR 15-16M","No"]
["Poland ","EUR 16-17M","No"]
["Poland ","EUR 17-18M","No"]
["Poland ","EUR 18-19M","No"]
["Poland ","EUR 19-20M","No"]
["Poland ","EUR 20-21M","No"]
["Poland ","EUR 21-22M","No"]
["Poland ","EUR 22-23M","No"]
["Poland ","EUR 23-24M","No"]
["Poland ","EUR 24-25M","No"]
["Poland ","EUR 25-26M","No"]
["Poland ","EUR 26-27M","No"]
["Poland ","EUR 27-28M","No"]
["Poland ","EUR 28-29M","No"]
["Poland ","EUR 29-30M","No"]
["Portugal ","EUR 1-2M","No"]
["Portugal ","EUR 2-3M","No"]
["Portugal ","EUR 3-4M","No"]
["Portugal ","EUR 4-5M","No"]
["Portugal ","EUR 5-6M","No"]
["Portugal ","EUR 6-7M","No"]
["Portugal ","EUR 7-8M","No"]
["Portugal ","EUR 8-9M","No"]
["Portugal ","EUR 9-10M","No"]
["Portugal ","EUR 10-11M","No"]
["Portugal ","EUR 11-12M","No"]
["Portugal ","EUR 12-13M","No"]
["Portugal ","EUR 13-14M","No"]
["Portugal ","EUR 14-15M","No"]
["Portugal ","EUR 15-16M","No"]
["Portugal ","EUR 16-17M","No"]
["Portugal ","EUR 17-18M","No"]
["Portugal ","EUR 18-19M","No"]
["Portugal ","EUR 19-20M","No"]
["Portugal ","EUR 20-21M","No"]
["Portugal ","EUR 21-22M","No"]
["Portugal ","EUR 22-23M","No"]
["Portugal ","EUR 23-24M","No"]
["Portugal ","EUR 24-25M","No"]
["Portugal ","EUR 25-26M","No"]
["Portugal ","EUR 26-27M","No"]
["Portugal ","EUR 27-28M","No"]
["Portugal ","EUR 28-29M","No"]
["Portugal ","EUR 29-30M","No"]
["Romania ","EUR 1-2M","No"]
["Romania ","EUR 2-3M","No"]
["Romania ","EUR 3-4M","No"]
["Romania ","EUR 4-5M","No"]
["Romania ","EUR 5-6M","No"]
["Romania ","EUR 6-7M","No"]
["Romania ","EUR 7-8M","No"]
["Romania ","EUR 8-9M","No"]
["Romania ","EUR 9-10M","No"]
["Romania ","EUR 10-11M","No"]
["Romania ","EUR 11-12M","No"]
["Romania ","EUR 12-13M","No"]
["Romania ","EUR 13-14M","No"]
["Romania ","EUR 14-15M","No"]
["Romania ","EUR 15-16M","No"]
["Romania ","EUR 16-17M","No"]
["Romania ","EUR 17-18M","No"]
["Romania ","EUR 18-19M","No"]
["Romania ","EUR 19-20M","No"]
["Romania ","EUR 20-21M","No"]
["Romania ","EUR 21-22M","No"]
["Romania ","EUR 22-23M","No"]
["Romania ","EUR 23-24M","No"]
["Romania ","EUR 24-25M","No"]
["Romania ","EUR 25-26M","No"]
["Romania ","EUR 26-27M","No"]
["Romania ","EUR 27-28M","No"]
["Romania ","EUR 28-29M","No"]
["Romania ","EUR 29-30M","No"]
["Slovakia ","EUR 1-2M","No"]
["Slovakia ","EUR 2-3M","No"]
["Slovakia ","EUR 3-4M","No"]
["Slovakia ","EUR 4-5M","No"]
["Slovakia ","EUR 5-6M","No"]
["Slovakia ","EUR 6-7M","No"]
["Slovakia ","EUR 7-8M","No"]
["Slovakia ","EUR 8-9M","No"]
["Slovakia ","EUR 9-10M","No"]
["Slovakia ","EUR 10-11M","No"]
["Slovakia ","EUR 11-12M","No"]
["Slovakia ","EUR 12-13M","No"]
["Slovakia ","EUR 13-14M","No"]
["Slovakia ","EUR 14-15M","No"]
["Slovakia ","EUR 15-16M","No"]
["Slovakia ","EUR 16-17M","No"]
["Slovakia ","EUR 17-18M","No"]
["Slovakia ","EUR 18-19M","No"]
["Slovakia ","EUR 19-20M","No"]
["Slovakia ","EUR 20-21M","No"]
["Slovakia ","EUR 21-22M","No"]
["Slovakia ","EUR 22-23M","No"]
["Slovakia ","EUR 23-24M","No"]
["Slovakia ","EUR 24-25M","No"]
["Slovakia ","EUR 25-26M","No"]
["Slovakia ","EUR 26-27M","No"]
["Slovakia ","EUR 27-28M","No"]
["Slovakia ","EUR 28-29M","No"]
["Slovakia ","EUR 29-30M","No"]
["Slovenia ","EUR 1-2M","No"]
["Slovenia ","EUR 2-3M","No"]
["Slovenia ","EUR 3-4M","No"]
["Slovenia ","EUR 4-5M","No"]
["Slovenia ","EUR 5-6M","No"]
["Slovenia ","EUR 6-7M","No"]
["Slovenia ","EUR 7-8M","No"]
["Slovenia ","EUR 8-9M","No"]
["Slovenia ","EUR 9-10M","No"]
["Slovenia ","EUR 10-11M","No"]
["Slovenia ","EUR 11-12M","No"]
["Slovenia ","EUR 12-13M","No"]
["Slovenia ","EUR 13-14M","No"]
["Slovenia ","EUR 14-15M","No"]
["Slovenia ","EUR 15-16M","No"]
["Slovenia ","EUR 16-17M","No"]
["Slovenia ","EUR 17-18M","No"]
["Slovenia ","EUR 18-19M","No"]
["Slovenia ","EUR 19-20M","No"]
["Slovenia ","EUR 20-21M","No"]
["Slovenia ","EUR 21-22M","No"]
["Slovenia ","EUR 22-23M","No"]
["Slovenia ","EUR 23-24M","No"]
["Slovenia ","EUR 24-25M","No"]
["Slovenia ","EUR 25-26M","No"]
["Slovenia ","EUR 26-27M","No"]
["Slovenia ","EUR 27-28M","No"]
["Slovenia ","EUR 28-29M","No"]
["Slovenia ","EUR 29-30M","No"]
["Spain ","EUR 1-2M","No"]
["Spain ","EUR 2-3M","No"]
["Spain ","EUR 3-4M","No"]
["Spain ","EUR 4-5M","No"]
["Spain ","EUR 5-6M","No"]
["Spain ","EUR 6-7M","No"]
["Spain ","EUR 7-8M","No"]
["Spain ","EUR 8-9M","No"]
["Spain ","EUR 9-10M","No"]
["Spain ","EUR 10-11M","No"]
["Spain ","EUR 11-12M","No"]
["Spain ","EUR 12-13M","No"]
["Spain ","EUR 13-14M","No"]
["Spain ","EUR 14-15M","No"]
["Spain ","EUR 15-16M","No"]
["Spain ","EUR 16-17M","No"]
["Spain ","EUR 17-18M","No"]
["Spain ","EUR 18-19M","No"]
["Spain ","EUR 19-20M","No"]
["Spain ","EUR 20-21M","No"]
["Spain ","EUR 21-22M","No"]
["Spain ","EUR 22-23M","No"]
["Spain ","EUR 23-24M","No"]
["Spain ","EUR 24-25M","No"]
["Spain ","EUR 25-26M","No"]
["Spain ","EUR 26-27M","No"]
["Spain ","EUR 27-28M","No"]
["Spain ","EUR 28-29M","No"]
["Spain ","EUR 29-30M","No"]
["Sweden ","EUR 1-2M","No"]
["Sweden ","EUR 2-3M","No"]
["Sweden ","EUR 3-4M","No"]
["Sweden ","EUR 4-5M","No"]
["Sweden ","EUR 5-6M","No"]
["Sweden ","EUR 6-7M","No"]
["Sweden ","EUR 7-8M","No"]
["Sweden ","EUR 8-9M","No"]
["Sweden ","EUR 9-10M","No"]
["Sweden ","EUR 10-11M","No"]
["Sweden ","EUR 11-12M","No"]
["Sweden ","EUR 12-13M","No"]
["Sweden ","EUR 13-14M","No"]
["Sweden ","EUR 14-15M","No"]
["Sweden ","EUR 15-16M","No"]
["Sweden ","EUR 16-17M","No"]
["Sweden ","EUR 17-18M","No"]
["Sweden ","EUR 18-19M","No"]
["Sweden ","EUR 19-20M","No"]
["Sweden ","EUR 20-21M","No"]
["Sweden ","EUR 21-22M","No"]
["Sweden ","EUR 22-23M","No"]
["Sweden ","EUR 23-24M","No"]
["Sweden ","EUR 24-25M","No"]
["Sweden ","EUR 25-26M","No"]
["Sweden ","EUR 26-27M","No"]
["Sweden ","EUR 27-28M","No"]
["Sweden ","EUR 28-29M","No"]
["Sweden ","EUR 29-30M","No"]
["United Kingdom","EUR 1-2M","No",null,null,null,null,null,null,null,null,null,null,null,null,null,null,null,null,null,null,null,null,null,null,null,null,null,null,null,null,null,null,null,null,null,null,null,null,null,null,null,null,null,null,null,null,null,null,null,null,null,null,null,null,null,null,null,null,null,null,null,null,null,null,null,null,null,null,null,null,null,null,null,null,null,null,null,null,null,null,null,null,null,null,null,null,null,null,null,null,null,null,null,null,null,null,null,null,null,null,null,null,null,null,null,null,null,null,null,null,null,null,null,null,null,null,null,null,null,null,null,null,null,null,null,null,null,null,null,null,null,null,null,null,null,null,null,null,null,null,null,null,0,null,null,null,null,null,null,null,null,null,null,null,null,0,null,null,null,0,null,null,null,0]
["United Kingdom","EUR 2-3M","No",null,null,null,null,null,null,null,null,null,null,null,null,null,null,null,null,null,null,null,null,null,null,null,null,null,null,null,null,null,null,null,null,null,null,null,null,null,null,null,null,null,null,null,null,null,null,null,null,null,null,null,null,null,null,null,null,null,null,null,null,null,null,null,null,null,null,null,null,null,null,null,null,null,null,null,null,null,null,null,null,null,null,null,null,null,null,null,null,null,null,null,null,null,null,null,null,null,null,null,null,null,null,null,null,null,null,null,null,null,null,null,null,null,null,null,null,null,null,null,null,null,null,null,null,null,null,null,null,null,null,null,null,null,null,null,null,null,null,null,null,0,null,null,null,null,null,null,null,null,null,null,null,null,0,null,null,null,0,null,null,null,0]
["United Kingdom","EUR 3-4M","No"]
["United Kingdom","EUR 4-5M","No",null,null,null,null,null,null,null,null,null,null,null,null,null,null,null,null,null,null,null,null,null,null,null,null,null,null,null,null,null,null,null,null,null,null,null,null,null,null,null,null,null,null,null,null,null,null,null,null,null,null,null,null,null,null,null,null,null,null,null,null,null,null,null,null,null,null,null,null,null,null,null,null,null,null,null,null,null,null,null,null,null,null,null,null,null,null,null,null,null,null,null,null,null,null,null,null,null,null,null,null,null,null,null,null,null,null,null,null,null,null,null,null,null,null,null,null,null,null,null,null,null,null,null,null,null,null,null,null,null,null,null,null,null,null,null,null,null,null,null,null,0,null,null,null,null,null,null,null,null,null,null,null,null,0,null,null,null,0,null,null,null,0]
["United Kingdom","EUR 5-6M","No"]
["United Kingdom","EUR 6-7M","No",null,null,null,null,null,null,null,null,null,null,null,null,null,null,null,null,null,null,null,null,null,null,null,null,null,null,null,null,null,null,null,null,null,null,null,null,null,null,null,null,null,null,null,null,null,null,null,null,null,null,null,null,null,null,null,null,null,null,null,null,null,null,null,null,null,null,null,null,null,null,null,null,null,null,null,null,null,null,null,null,null,null,null,null,null,null,null,null,null,null,null,null,null,null,null,null,null,null,null,null,null,null,null,null,null,null,null,null,null,null,null,null,null,null,null,null,null,null,null,null,null,null,null,null,null,null,null,null,null,null,null,null,null,null,null,null,null,null,null,null,0,null,null,null,null,null,null,null,null,null,null,null,null,0,null,null,null,0,null,null,null,0]
["United Kingdom","EUR 7-8M","No"]
["United Kingdom","EUR 8-9M","No"]
["United Kingdom","EUR 9-10M","No"]
["United Kingdom","EUR 10-11M","No"]
["United Kingdom","EUR 11-12M","No"]
["United Kingdom","EUR 12-13M","No"]
["United Kingdom","EUR 13-14M","No"]
["United Kingdom","EUR 14-15M","No"]
["United Kingdom","EUR 15-16M","No"]
["United Kingdom","EUR 16-17M","No"]
["United Kingdom","EUR 17-18M","No"]
["United Kingdom","EUR 18-19M","No"]
["United Kingdom","EUR 19-20M","No"]
["United Kingdom","EUR 20-21M","No"]
["United Kingdom","EUR 21-22M","No"]
["United Kingdom","EUR 22-23M","No"]
["United Kingdom","EUR 23-24M","No"]
["United Kingdom","EUR 24-25M","No"]
["United Kingdom","EUR 25-26M","No"]
["United Kingdom","EUR 26-27M","No"]
["United Kingdom","EUR 27-28M","No"]
["United Kingdom","EUR 28-29M","No"]
["United Kingdom","EUR 29-30M","No"]